Workbook

Sheet 1. Forside
A1: Ikast-Brande Spildevand A/S
D8: Bilag A
D13: Indholdsfortegnelse
C16: Fane nr. 2 | D16: Samlet prisloft
C17: Fane nr. 3 | D17: Driftsomkostninger
C18: Fane nr. 4 | D18: Historiske investeringer
C19: Fane nr. 5 | D19: Gennemførte investeringer
C20: Fane nr. 6 | D20: Korrektion investeringer
C21: Fane nr. 7 | D21: Planlagte investeringer
C22: Fane nr. 8 | D22: 1:1 omkostninger
C23: Fane nr. 9 | D23: Miljø- og servicemål
C24: Fane nr. 10 | D24: Klimatilpasning
C25: Fane nr. 11 | D25: Nettofinansielle poster
C26: Fane nr. 12 | D26: Over- eller underdækning
C27: Fane nr. 13 | D27: Kontrol med indtægtsrammen og oversigt over ekstraordinære effektiviseringsgevinster
C28: Fane nr. 14 | D28: EAA-beregning

Sheet 2. Samlet prisloft
A1: ='1. Forside'!A1 -> Ikast-Brande Spildevand A/S
B4: Fane 2. Samlet prisloft for 2015
B6: Driftsomkostninger
B7: Driftsomkostninger i prisloftet for 2014 | C7: ='3. Driftsomkostninger'!C20 -> 23925852.13 | D7: kr.
B8: Bortfald af væsentlige omkostninger | C8: =-'3. Driftsomkostninger'!C16 -> 0 | D8: kr.
B9: Korrektion for prisudviklingen 2014-2015 | C9: ='3. Driftsomkostninger'!C22 -> 19140.68171 | D9: kr.
B10: Forhøjelse til effektivt niveau iht. benchmarkingen | C10: ='3. Driftsomkostninger'!C28 -> 0 | D10: kr.
B11: Korrektion for generelt effektiviseringskrav | C11: =-'3. Driftsomkostninger'!C34 -> -105273.7494 | D11: kr.
B12: Korrektion for individuelt effektiviseringskrav | C12: =-'3. Driftsomkostninger'!C43 -> -1064700.42 | D12: kr.
B13: Driftsomkostninger i alt | C13: =SUM(C7:C12) -> 22775018.64 | D13: kr. | E13: =C13 -> 22775018.64 | F13: kr.
B14: Investeringer
B15: Tillæg for historiske investeringer | C15: ='4. Historiske investeringer'!C9 -> 34918635.64 | D15: kr.
B16: Tillæg for gennemførte investeringer i 2011-2013 | C16: ='5. Gennemførte investeringer'!F35 -> 4290678.053 | D16: kr.
B17: Korrektion af tillæg for planlagte investeringer vedrørende 2013 | C17: ='6. Korrektion investeringer'!C10 -> 1754012.58 | D17: kr.
B18: Tillæg for planlagte investeringer i 2014 og 2015 | C18: ='7. Planlagte investeringer'!F41 -> 1525500 | D18: kr.
B19: Investeringstillæg i alt | C19: =SUM(C15:C18) -> 42488826.28 | D19: kr. | E19: =C19 -> 42488826.28 | F19: kr.
B20: Øvrige omkostninger mv.
B21: Tillæg for 1:1 omkostninger i 2015 | C21: ='8. 1-1 omkostninger'!C12 -> 5368000 | D21: kr.
B22: Tillæg vedr. revisorerklæringer og DANVA/FVD-kontingent | C22: ='8. 1-1 omkostninger'!C20 -> 135000 | D22: kr.
B23: Korrektion ift. faktiske 1:1 omkostninger i 2013 | C23: ='8. 1-1 omkostninger'!C26 -> -51357 | D23: kr.
B24: Tillæg for driftsomkostninger til miljø- og servicemål i 2015 | C24: ='9. Miljø- og servicemål'!C8 -> 0 | D24: kr.
B25: Korrektion ift. faktiske driftsomkostninger til miljø- og servicemål i 2013 | C25: ='9. Miljø- og servicemål'!C15 -> 0 | D25: kr.
B26: Tillæg for driftsomkostninger til medfinansiering af klimatilpasningsprojekter i 2015 | C26: ='10. Klimatilpasning'!C9 -> 407366 | D26: kr.
B27: Korrektion ift. faktiske omkostninger til medfinansiering af klimatilpasningsprojekter i 2013 | C27: ='10. Klimatilpasning'!C16 -> 0 | D27: kr.
B28: Tillæg/fradrag for nettofinansielle poster i 2015 | C28: ='11. Nettofinansielle poster'!C9 -> 1350000 | D28: kr.
B29: Korrektion ift. faktiske nettofinansielle poster i 2013 | C29: ='11. Nettofinansielle poster'!C16 -> -169943 | D29: kr.
B30: Øvrige omkostninger mv. i alt | C30: =SUM(C21:C29) -> 7039066 | D30: kr. | E30: =C30 -> 7039066 | F30: kr.
B31: Historisk over- eller underdækning
B32: Tillæg/fradrag for over- eller underdækning til og med 2010 | C32: ='12. Over- eller underdækning'!C11 -> 899470.4974 | D32: kr. | E32: =C32 -> 899470.4974 | F32: kr.
B33: Korrektion i forhold til tidligere indtægtsramme
B34: Korrektion for overholdelse af indtægtsramme i prisloft 2013 | C34: ='13. Kontrol med indtægtsrammen'!E27 -> 2984305.568 | D34: kr. | E34: =C34 -> 2984305.568 | F34: kr.
B35: Samlet prisloft
B36: Indtægtsramme i 2015 | E36: =SUM(E13:E34) -> 76186686.99 | F36: kr.
B37: Debiteret vandmængde i 2013 | E37: 1773991 | F37: m3
B38: Prisloft 2015 | E38: =E36/E37 -> 42.94649014 | F38: kr./m3

Sheet 3. Driftsomkostninger
A1: ='1. Forside'!A1 -> Ikast-Brande Spildevand A/S
B4: Fane 3. Driftsomkostninger
B6: Driftsomkostningerne i prisloftet for 2014
B7: Korrigerede driftsomkostninger i prisloftet for 2013 (DOiPL 2013) | C7: 24793629.15 | D7: kr.
B8: Prisfremskrivning 1,5 pct. | C8: =0.015*SUM(C7:C7) -> 371904.4373 | D8: kr.
B9: Generelt effektiviseringskrav (0 pct.) | C9: 0 | D9: kr.
B10: Individuelt effektiviseringskrav | C10: -1239681.458 | D10: kr.
B11: Driftsomkostningerne i prisloftet for 2014 (DOiPL 2014) | C11: =SUM(C7:C10) -> 23925852.13 | D11: kr.
B14: Korrektion for forventet bortfald af væsentlige omkostninger
B15: Selskabets indberettede bortfald af væsentlige omkostninger inden 2015 | C15: 0 | D15: kr.
B16: Korrektion for forventet bortfald | C16: =SUM(C15:C15) -> 0 | D16: kr.
B19: Korrektion for prisudviklingen fra 2014-2015
B20: Driftsomkostningerne i prisloftet for 2014 | C20: =C11-C16 -> 23925852.13 | D20: kr.
B21: Prisudvikling 2014 - 2015 | C21: 0.08 | D21: pct.
B22: Korrektion for prisudvikling | C22: =C20*(C21/100) -> 19140.68171 | D22: kr.
B25: Eventuel forhøjelse til effektivt niveau iht. benchmarkingen
B26: Selskabets effektive driftsomkostninger iht. benchmarkingen | C26: 16501660.22 | D26: kr.
B27: Selskabets pristalskorrigerede driftsomkostninger i 2015-niveau | C27: =C20+C22 -> 23944992.81 | D27: kr.
B28: Eventuel forhøjelse til effektivt niveau | C28: =IF(C27>C26,0,C26-C27) -> 0 | D28: kr.
B31: Korrektion for generelt effektiviseringskrav
B32: Driftsomkostningerne i prisloftet for 2014 | C32: =C20 -> 23925852.13 | D32: kr.
B33: Generelt effektiviseringskrav | C33: 0.44 | D33: pct.
B34: Endeligt generelt effektiviseringskrav | C34: =C32*(C33/100) -> 105273.7494 | D34: kr.
B37: Korrektion for individuelt effektiviseringskrav
B38: Rå effektiviseringspotentiale | C38: 7529465.666 | D38: kr.
B39: Effektiviseringspotentiale efter eventuel korrektion for særlige forhold | C39: 7424191.917 | D39: kr.
B40: Effektiviseringspotentiale efter forsigtighedshensyn | C40: 4258801.68 | D40: kr.
B41: Effektiviseringspotentiale efter eventuel korrektion for sammensætning af signifikante costdrivere | C41: 4258801.68 | D41: kr.
B42: Umiddelbart effektiviseringskrav | C42: =C41/4 -> 1064700.42 | D42: kr.
B43: Endeligt individuelt effektiviseringskrav | C43: =IF(C42>0.05*C20,0.05*C20,IF(C42<0.01*C20,0,C42)) -> 1064700.42 | D43: kr.

Sheet 4. Historiske investeringer
A1: ='3. Driftsomkostninger'!A1 -> Ikast-Brande Spildevand A/S
B4: Fane 4. Historiske investeringer
B6: Tillæg for historiske investeringer
B7: Værdi af selskabets materielle anlægsaktiver pr. 1. januar 2010 | C7: 1600767744 | D7: kr.
B8: Den årlige standardafskrivning på de materielle anlægsaktiver iht. POLKA | C8: 34918635.64 | D8: kr.
B9: Tillæg i alt i 2015 | C9: =C8 -> 34918635.64 | D9: kr.

Sheet 5. Gennemførte investeringer
A1: ='4. Historiske investeringer'!A1 -> Ikast-Brande Spildevand A/S
B4: Fane 5. Gennemførte investeringer i 2010 - 2013
B6: Tillæg for gennemførte investeringer i 2013
B7: Beskrivelse af investeringen | C7: Årstal | D7: Std. levetid (år) | E7: Anskaffelses-pris (kr.) | F7: Afskrivning
B8: Ledningsnet = Ø 200 mm | C8: 2013 | D8: 75 | E8: 19002855 | F8: =E8/D8 -> 253371.4 | G8: kr.
B9: Ø 200 mm < Ledningsnet = Ø 500 mm | C9: 2013 | D9: 75 | E9: 5690330 | F9: =E9/D9 -> 75871.06667 | G9: kr.
B10: Ø 500 mm < Ledningsnet = Ø 800 mm | C10: 2013 | D10: 75 | E10: 3347619 | F10: 44634.92 | G10: kr.
B11: Ø 800 mm < Ledningsnet = Ø 1000 mm | C11: 2013 | D11: 75 | E11: 593372 | F11: 7911.626667 | G11: kr.
B12: Ø 1200 mm < Ledningsnet = Ø 1600 mm | C12: 2013 | D12: 75 | E12: 244175 | F12: 3255.666667 | G12: kr.
B13: Brønde | C13: 2013 | D13: 75 | E13: 7280841 | F13: 97077.88 | G13: kr.
B14: Installationer "ingen eller faste riste" (mindre end 7 m2) | C14: 2013 | D14: 20 | E14: 1136122 | F14: 56806.1 | G14: kr.
B15: Pumpestationer m. overbygning (< 20 m2), Konstruktioner | C15: 2013 | D15: 50 | E15: 417273 | F15: 8345.46 | G15: kr.
B16: Pumpestationer m. overbygning (< 20 m2), Mek/EL | C16: 2013 | D16: 20 | E16: 1318114 | F16: 65905.7 | G16: kr.
B17: Strømpeforing = Ø 200 mm | C17: 2013 | D17: 50 | E17: 745085 | F17: 14901.7 | G17: kr.
B18: Strømpeforing Ø 200 mm < Ledningsnet = Ø 500 mm | C18: 2013 | D18: 50 | E18: 64727 | F18: 1294.54 | G18: kr.
B19: Jordbassin Klasse A | C19: 2013 | D19: 50 | E19: 1768684 | F19: 35373.68 | G19: kr.
B20: Pumpestationer i brønde (< 6,25 m2), SRO | C20: 2013 | D20: 10 | E20: 157945 | F20: 15794.5 | G20: kr.
B21: Pumpestationer m. overbygning (< 20 m2), SRO | C21: 2013 | D21: 10 | E21: 157944 | F21: 15794.4 | G21: kr.
B22: Indløb med riste, SRO | C22: 2013 | D22: 10 | E22: 1935064 | F22: 193506.4 | G22: kr.
B23: Beluftningstanke, SRO | C23: 2013 | D23: 10 | E23: 2256725 | F23: 225672.5 | G23: kr.
B24: Efterklaringstanke, SRO | C24: 2013 | D24: 10 | E24: 1569862 | F24: 156986.2 | G24: kr.
B25: Beluftningstanke, Konstruktioner | C25: 2013 | D25: 60 | E25: 235609 | F25: 3926.816667 | G25: kr.
B26: Slutafvanding, slam - højteknologisk (centrifuger), Konstruktioner | C26: 2013 | D26: 60 | E26: 681063 | F26: 11351.05 | G26: kr.
B27: Slutafvanding, slam - højteknologisk (centrifuger), Mek/El | C27: 2013 | D27: 20 | E27: 2217929 | F27: 110896.45 | G27: kr.
B28: Slutafvanding, slam - højteknologisk (centrifuger), SRO | C28: 2013 | D28: 10 | E28: 171880 | F28: 17188 | G28: kr.
B29: Køretøjer, store lastvogne (> 3.500 kg.) | C29: 2013 | D29: 5 | E29: 1011980 | F29: 202396 | G29: kr.
B30: Køretøjer, små lastvogne (< 3.500 kg.) | C30: 2013 | D30: 5 | E30: 452383 | F30: 90476.6 | G30: kr.
B31: Slutdisponering, slam - lavteknologisk (slammineralisering), Konstruktioner | C31: 2013 | D31: 60 | E31: 3638438 | F31: 60640.63333 | G31: kr.
B32: Oversvømmelseskort | C32: 2013 | D32: 5 | E32: 1085635 | F32: 217127 | G32: kr.
B33: Tillæg for 2013 | F33: =SUM(F8:F32) -> 1986506.29 | G33: kr.
B34: Tillæg for 2010 - 2012 | F34: 2304171.763 | G34: kr.
B35: Samlet tillæg for gennemførte investeringer | F35: =F33+F34 -> 4290678.053 | G35: kr.

Sheet 6. Korrektion investeringer
A1: ='5. Gennemførte investeringer'!A1 -> Ikast-Brande Spildevand A/S
B4: Fane 6. Korrektion af tillæg for planlagte investeringer
B6: Korrektion af tillæg for planlagte investeringer vedr. 2013
B7: Tillæg for planlagte investeringer i 2013 i prisloft 2013 | C7: 864000 | D7: kr.
B8: Tillæg for planlagte investeringer i 2013 i prisloft 2014 | C8: 1355000 | D8: kr.
B9: Selskabets faktiske afskrivninger på gennemførte investeringer i 2013 | C9: ='5. Gennemførte investeringer'!F33 -> 1986506.29 | D9: kr.
B10: Korrektion af tillæg for planlagte investeringer vedr. 2013 | C10: =C9-C7+C9-C8 -> 1754012.58 | D10: kr.

Sheet 7. Planlagte investeringer
A1: ='6. Korrektion investeringer'!A1 -> Ikast-Brande Spildevand A/S
B4: Fane 7. Planlagte investeringer
B6: Tillæg for planlagte investeringer i 2014 og 2015
B7: Beskrivelse af investeringen | C7: Årstal | D7: Std. levetid (år) | E7: Anskaffelses-pris (kr.) | F7: Afskrivning
B8: Jordbassin Klasse A | C8: 2014 | D8: 50 | E8: 6000000 | F8: =E8/D8 -> 120000 | G8: kr.
B9: Brønde | C9: 2014 | D9: 75 | E9: 2200000 | F9: =E9/D9 -> 29333.33333 | G9: kr.
B10: Pumpestationer m. overbygning (< 20 m2), Konstruktioner | C10: 2014 | D10: 50 | E10: 100000 | F10: =E10/D10 -> 2000 | G10: kr.
B11: Ledningsnet = Ø 200 mm | C11: 2014 | D11: 75 | E11: 9700000 | F11: 129333.3333 | G11: kr.
B12: Ø 200 mm < Ledningsnet = Ø 500 mm | C12: 2014 | D12: 75 | E12: 4000000 | F12: 53333.33333 | G12: kr.
B13: Ø 500 mm < Ledningsnet = Ø 800 mm | C13: 2014 | D13: 75 | E13: 1000000 | F13: 13333.33333 | G13: kr.
B14: Ø 800 mm < Ledningsnet = Ø 1000 mm | C14: 2014 | D14: 75 | E14: 2000000 | F14: 26666.66667 | G14: kr.
B15: Strømpeforing = Ø 200 mm | C15: 2014 | D15: 50 | E15: 2000000 | F15: 40000 | G15: kr.
B16: Køretøjer, små lastvogne (< 3.500 kg.) | C16: 2014 | D16: 5 | E16: 1200000 | F16: 240000 | G16: kr.
B17: Beluftningstanke, SRO | C17: 2014 | D17: 10 | E17: 1400000 | F17: 140000 | G17: kr.
B18: Pumpestationer m. overbygning (< 20 m2), Mek/EL | C18: 2014 | D18: 20 | E18: 520000 | F18: 26000 | G18: kr.
B19: Jordbassin Klasse A | C19: 2014 | D19: 50 | E19: 200000 | F19: 4000 | G19: kr.
B20: Efterklaringstanke, Konstruktioner | C20: 2014 | D20: 60 | E20: 180000 | F20: 3000 | G20: kr.
B21: Pumpestationer m. overbygning (< 20 m2), Mek/EL | C21: 2014 | D21: 20 | E21: 300000 | F21: 15000 | G21: kr.
B22: Pumpestationer m. overbygning (< 20 m2), SRO | C22: 2014 | D22: 10 | E22: 200000 | F22: 20000 | G22: kr.
B23: Jordbassin Klasse A | C23: 2015 | D23: 50 | E23: 3000000 | F23: 60000 | G23: kr.
B24: Brønde | C24: 2015 | D24: 75 | E24: 4500000 | F24: 60000 | G24: kr.
B25: Pumpestationer i brønde (< 6,25 m2), Konstruktioner | C25: 2015 | D25: 50 | E25: 250000 | F25: 5000 | G25: kr.
B26: Pumpestationer i brønde (< 6,25 m2), Mek/EL | C26: 2015 | D26: 20 | E26: 250000 | F26: 12500 | G26: kr.
B27: Ledningsnet = Ø 200 mm | C27: 2015 | D27: 75 | E27: 8000000 | F27: 106666.6667 | G27: kr.
B28: Ø 200 mm < Ledningsnet = Ø 500 mm | C28: 2015 | D28: 75 | E28: 5500000 | F28: 73333.33333 | G28: kr.
B29: Ø 500 mm < Ledningsnet = Ø 800 mm | C29: 2015 | D29: 75 | E29: 3500000 | F29: 46666.66667 | G29: kr.
B30: Ø 800 mm < Ledningsnet = Ø 1000 mm | C30: 2015 | D30: 75 | E30: 2000000 | F30: 26666.66667 | G30: kr.
B31: Strømpeforing Ø 200 mm < Ledningsnet = Ø 500 mm | C31: 2015 | D31: 50 | E31: 500000 | F31: 10000 | G31: kr.
B32: Værksteder, garager | C32: 2015 | D32: 75 | E32: 3200000 | F32: 42666.66667 | G32: kr.
B33: Efterklaringstanke, SRO | C33: 2015 | D33: 10 | E33: 400000 | F33: 40000 | G33: kr.
B34: Køretøjer, små lastvogne (< 3.500 kg.) | C34: 2015 | D34: 5 | E34: 500000 | F34: 100000 | G34: kr.
B35: Efterklaringstanke, Mek/El | C35: 2015 | D35: 20 | E35: 300000 | F35: 15000 | G35: kr.
B36: Pumpestationer i brønde (< 6,25 m2), Mek/EL | C36: 2015 | D36: 20 | E36: 400000 | F36: 20000 | G36: kr.
B37: Pumpestationer i brønde (< 6,25 m2), SRO | C37: 2015 | D37: 10 | E37: 400000 | F37: 40000 | G37: kr.
B38: Efterklaringstanke, Konstruktioner | C38: 2015 | D38: 60 | E38: 300000 | F38: 5000 | G38: kr.
B39: Tillæg for 2014 | F39: =SUMIF(C8:C38,"2014",F8:F38) -> 862000 | G39: kr.
B40: Tillæg for 2015 | F40: =SUMIF(C8:C38,"2015",F8:F38) -> 663500 | G40: kr.
B41: Tillæg i alt | F41: =F39+F40 -> 1525500 | G41: kr.

Sheet 8. 1-1 omkostninger
A1: ='7. Planlagte investeringer'!A1 -> Ikast-Brande Spildevand A/S
B4: Fane 8. 1:1 omkostninger
B6: Tillæg for budgetterede 1:1 omkostninger i 2015
B7: Betaling til Forsyningssekretariatet | C7: 33000 | D7: kr.
B8: Spildevandsafgift | C8: 750000 | D8: kr.
B9: Betaling af selskabsskatter | C9: 4200000 | D9: kr.
B10: Køb af varer og tjenesteydelser hos et andet prisloftreguleret vandselskab | C10: 310000 | D10: kr.
B11: Ejendomsskatter | C11: 75000 | D11: kr.
B12: Tillæg i alt | C12: =SUM(C7:C11) -> 5368000 | D12: kr.
B17: Tillæg for budgetterede nødvendige udgifter til revisorerklæringer samt ordinært medlemskab af DANVA og FVD i 2015
B18: Betaling for ordinært medlemskab af DANVA/FVD | C18: 80000 | D18: kr.
B19: Betaling for revisorerklæringer | C19: 55000 | D19: kr.
B20: Tillæg i alt | C20: =SUM(C18:C19) -> 135000 | D20: kr.
B23: Korrektion af tillæg for faktiske 1:1 omkostninger (inkl. revisorerklæringer og ordinært medlemskab af DANVA/FVD) i 2013
B24: Selskabets faktiske 1:1 omkostninger mv. i 2013, jf. reguleringsregnskabet | C24: 1336643 | D24: kr.
B25: Tillæg for budgetterede 1:1 omkostninger mv. i prisloft 2013 | C25: 1388000 | D25: kr.
B26: Korrektion af tillæg for budgetterede 1:1 omkostninger mv. i 2013 | C26: =C24-C25 -> -51357 | D26: kr.

Sheet 9. Miljø- og servicemål
A1: ='8. 1-1 omkostninger'!A1 -> Ikast-Brande Spildevand A/S
B4: Fane 9. Driftsomkostninger til miljø- og servicemål
B6: Tillæg for budgetterede driftsomkostninger til miljø- og servicemål i 2015
C7: 0 | D7: kr.
B8: Tillæg i alt | C8: =SUM(C7:C7) -> 0 | D8: kr.
B12: Korrektion af tillæg for faktiske driftsomkostninger til miljø- og servicemål i 2013
B13: Selskabets faktiske driftsomkostninger til miljø- og servicemål i 2013, jf. reguleringsregnskabet | C13: 0 | D13: kr.
B14: Tillæg for budgetterede driftsomkostninger til miljø- og servicemål i prisloft 2013 | C14: 0 | D14: kr.
B15: Korrektion af tillæg for budgetterede driftsomkostninger til miljø- og servicemål i 2013 | C15: =C13-C14 -> 0 | D15: kr.

Sheet 10. Klimatilpasning
A1: ='9. Miljø- og servicemål'!A1 -> Ikast-Brande Spildevand A/S
B4: Fane 10. Medfinansiering af klimatilpasningsprojekter
B7: Tillæg for budgetterede omkostninger til medfinansiering af klimatilpasningsprojekter i 2015
B8: Klimaprojekt Sædbækken | C8: 407366 | D8: kr.
B9: Tillæg i alt | C9: =SUM(C8:C8) -> 407366 | D9: kr.
B13: Korrektion af tillæg for faktiske omkostninger til medfinansiering af klimatilpasningsprojekter i 2013
B14: Selskabets faktiske driftsomkostninger til klimatilpasningsprojekter i 2013, jf. reguleringsregnskabet | C14: 0 | D14: kr.
B15: Tillæg for budgetterede driftsomkostninger til klimatilpasningsprojekter i prisloft 2013 | C15: 0 | D15: kr.
B16: Korrektion af tillæg for budgetterede omkostninger til klimatilpasningsprojekter i 2013 | C16: =C14-C15 -> 0 | D16: kr.

Sheet 11. Nettofinansielle poster
A1: ='10. Klimatilpasning'!A1 -> Ikast-Brande Spildevand A/S
B4: Fane 11. Nettofinansielle poster
B6: Tillæg for budgetterede nettofinansielle poster i 2015
B7: Budgetterede renteudgifter og gebyrer i 2015 | C7: 1500000 | D7: kr.
B8: Budgetterede renteindtægter i 2015 | C8: 150000 | D8: kr.
B9: Tillæg/fradrag i alt | C9: =C7-C8 -> 1350000 | D9: kr.
B13: Korrektion af tillæg for faktiske nettofinansielle poster i 2013
B14: Selskabets faktiske nettofinansielle poster i 2013, jf. reguleringsregnskabet | C14: 860057 | D14: kr.
B15: Tillæg for budgetterede nettofinansielle poster i prisloft 2013 | C15: 1030000 | D15: kr.
B16: Korrektion af tillæg for budgetterede nettofinansielle poster i 2013 | C16: =C14-C15 -> -169943 | D16: kr.

Sheet 12. Over- eller underdækning
A1: ='11. Nettofinansielle poster'!A1 -> Ikast-Brande Spildevand A/S
B4: Fane 12. Over- eller underdækning til og med 2010
B6: Tillæg/fradrag for over- eller underdækning til og med 2010
B7: Opgjort over- eller underdækning per 31. december 2010 | C7: 8297704 | D7: kr.
B8: Heraf beløb indregnet i prislofterne for 2011 - 2014 | C8: 2900881.016 | D8: kr.
B9: Endnu ikke indregnet over- eller underdækning | C9: =C7-C8 -> 5396822.984 | D9: kr.
B10: Resterende indregningsperiode (fastsat i prisloftet for 2012) | C10: 6 | D10: år
B11: Tillæg/fradrag i alt | C11: =IF(C7=0,0,C9/C10) -> 899470.4974 | D11: kr.

Sheet 13. Kontrol med indtægtsrammen
A1: ='12. Over- eller underdækning'!A1 -> Ikast-Brande Spildevand A/S
B4: Fane 13. Korrektion for overholdelse af indtægtsrammen i prisloftet for 2013
B6: Samlet opgørelse vedrørende overholdelse af indtægtsrammen i prisloftet for 2013
B7: Indtægtsramme i prisloftet for 2013 | E7: 75479934.99 | F7: kr.
B8: Ikke anvendt likviditet vedrørende investeringer i 2013
B9: Tillæg for historiske investeringer | C9: 35458365.26 | D9: kr.
B10: Tillæg for gennemførte investeringer i 2011 | C10: 1891523 | D10: kr.
B11: Korrektion af tillæg for planlagte investeringer i 2011 | C11: 55878 | D11: kr.
B12: Tillæg for planlagte investeringer i 2012 og 2013 | C12: 1915667 | D12: kr.
B13: Indtægter fra tilslutningsbidrag | C13: 4079071 | D13: kr.
B14: Indtægter fra salg af anlægsaktiver | C14: 573500 | D14: kr.
B15: Erstatninger vedr. anlægsaktiver mv. | C15: 0 | D15: kr.
B16: Ekstraordinær effektiviseringsgevinst anvendt til investeringer | C16: 185737 | D16: kr.
B17: Udgifter til investeringer | C17: -33775497 | D17: kr.
B18: Ikke anvendt likviditet vedr. investeringer i alt | C18: =SUM(C9:C17) -> 10384244.26 | D18: kr. | E18: =IF(C18<0,0,-C18) -> -10384244.26 | F18: kr.
B19: Ekstraordinære effektiviseringsgevinster anvendt til takstnedsættelse
B20: Ekstraordinær effektiviseringsgevinst anvendt til takstnedsættelse | C20: 1834454.152 | D20: kr. | E20: =-C20 -> -1834454.152 | F20: kr.
B21: Korrektion af ikke opkrævet tillæg fra 2011 i prisloft 2013
B22: Korrektion af ikke opkrævet tillæg fra 2011 i prisloft 2013 | C22: 0 | D22: kr. | E22: =-C22 -> 0 | F22: kr.
B23: Indtægter fra primære aktiviteter mv.
B24: Indtægter fra kubikmetertakster, faste takster, særbidrag, målergebyrer samt andre takster og gebyrer | C24: 60176510 | D24: kr.
B25: Andre indtægter i prisloftåret, som selskabet har opnået i forbindelse med eller som følge af selskabets primære aktiviteter | C25: 100421 | D25: kr.
B26: Indtægter fra primære aktiviteter mv. i alt | C26: =SUM(C24:C25) -> 60276931 | D26: kr. | E26: =-C26 -> -60276931 | F26: kr.
B27: Tillæg/fradrag i prisloftet for 2015 i alt | E27: =E7+E18+E20+E22+E26 -> 2984305.568 | F27: kr.
B31: Oversigt over ekstraordinære effektiviseringsgevinster
C33: 2012 | E33: 2013 | G33: 2014 | I33: 2015 | K33: 2016
B34: Indhentet ekstraordinær effektiviseringsgevinst | C34: 1058642 | D34: kr. | E34: 1834454.152 | F34: kr. | H34: kr. | J34: kr. | L34: kr.
B35: Gevinst anvendt til investeringer | C35: 0 | D35: kr. | E35: 185737 | F35: kr. | H35: kr. | J35: kr. | L35: kr.
B36: Gevinst anvendt til takstnedsættelse | C36: 872905 | D36: kr. | E36: 1834454.152 | F36: kr. | H36: kr. | J36: kr. | L36: kr.
B37: Korrektion for effektiviseringsgevinst der ikke er anvendt inden 4 år | C37: 0 | D37: kr. | E37: 0 | F37: kr. | H37: kr. | J37: kr. | K37: =IF(C38>SUM(C35:I36),C38-SUM(E35:I36),0)*-1 -> 0 | L37: kr.
B38: Resterende gevinst | C38: =C34-C35-C36 -> 185737 | D38: kr. | E38: =C38+E34-E35-E36 -> 0 | F38: kr. | G38: =E38+G34-G35-G36 -> 0 | H38: kr. | I38: =G38+I34-I35-I36 -> 0 | J38: kr. | K38: =K34-K35-K36+K37 -> 0 | L38: kr.

Sheet 14. EAA-beregning
B2: Vejledning:
B3: Dette dokument kan anvendes til at vurdere, hvorvidt klimatilpasning ved hhv. sædvanlig afhjælpning eller alternativt projekt er mest omkostningseffektivt. Oplysninger om forventet årlig effektiv rente
B4: samt omkostninger til anlæg og drift skal indtastes i de orange celler. Det bemærkes, at omkostninger indgår som negative tal.
B5: Herefter beregnes den årlige ækvivalente annuitet ved de to typer klimatilpasningsinitiativer. Sidst beregnes hvilket klimatilpasningsinitiativ, som er mest omkostningseffektivt
B8: Rente | E8: Resultater
B10: Forventet årlig effektiv rente | C10: 0.025 | E10: Årlig ækvivalent annuitet ved sædvanlig afhjælpning | F10: =IF(SUM($C$21:$C$144)<0,($C$10*SUM($K$25:$K$144)/(1-(1+$C$10)^(-($C$19-$C$18+1)))),"") -> -565725.4459
E11: Årlig ækvivalent annuitet ved alternativt klimatilpasningsprojekt | F11: =IF(SUM($F$25:$G$144)<0,($C$10*SUM($L$25:$L$144)/(1-(1+$C$10)^(-($F$19-$F$18+1)))),"") -> -417550.15
E13: Konklusion | F13: =IF($F$10<0,IF($F$10<>$F$11,IF($F$10>$F$11,"Sædvanlig afhjælpning er mest omkostningseffektivt","Alternativt projekt er mest omkostningseffektivt"),"Sædvanlig afhjælpning og alternativt projekt er lige omkostningseffektivt"),"") -> Alternativt projekt er mest omkostningseffektivt
B16: Klimatilpasning ved sædvanlig afhjælpning | E16: Klimatilpasning ved alternativt klimatilpasningsprojekt
B18: Projektets startår | C18: 2015 | E18: Projektets startår | F18: 2015 | L18: =IF($E18>=$F$18,IF($E18<=$F$19,SUM($F18:$G18),""),"") -> 
B19: Projektets slutår | C19: 2114 | E19: Projektets slutår | F19: 2039 | L19: =IF($E19>=$F$18,IF($E19<=$F$19,SUM($F19:$G19),""),"") -> 
B21: Anlægsomkostninger | C21: -19400000
B24: År | C24: Forventede driftsomkostninger i år t | E24: År | F24: Tilskud til anlægsomkostninger betalt i år t | G24: Tilskud til driftsomkostninger betalt i år t | I24: Sædvanlig afhjælpning: Cash-flow for anlæg | J24: Sædvanlig afhjælpning: Cash-flow for drift | K24: Tilbagediskonteret cash-flow for sædvanlig afhjælpning | L24: Tilbagediskonteret cash-flow for alternativt projekt
B25: 2013 | E25: 2013 | I25: =IF($B25=$C$18,$C$21,"") ->  | J25: =IF($B25>=$C$18,IF($B25<=$C$19,$C25,""),"") ->  | K25: =IF(SUM($I25:$J25)/((1+$C$10)^($B25-$C$18))<0,SUM($I25:$J25)/((1+$C$10)^($B25-$C$18)),"") ->  | L25: =IF($E25>=$F$18,IF($E25<=$F$19,IF(SUM($F25:$G25)/((1+$C$10)^($E25-$F$18))<0,SUM($F25:$G25)/((1+$C$10)^($E25-$F$18)),""),""),"") -> 
B26: 2014 | E26: 2014 | I26: =IF($B26=$C$18,$C$21,"") ->  | J26: =IF($B26>=$C$18,IF($B26<=$C$19,$C26,""),"") ->  | K26: =IF(SUM($I26:$J26)/((1+$C$10)^($B26-$C$18))<0,SUM($I26:$J26)/((1+$C$10)^($B26-$C$18)),"") ->  | L26: =IF($E26>=$F$18,IF($E26<=$F$19,IF(SUM($F26:$G26)/((1+$C$10)^($E26-$F$18))<0,SUM($F26:$G26)/((1+$C$10)^($E26-$F$18)),""),""),"") -> 
B27: =B26+1 -> 2015 | C27: -35000 | E27: =E26+1 -> 2015 | F27: -347366 | G27: -60000 | I27: -19400000 | J27: -35000 | K27: -19435000 | L27: -407366
B28: =B27+1 -> 2016 | C28: -35000 | E28: =E27+1 -> 2016 | F28: -347366 | G28: -60000 | J28: -35000 | K28: -34146.34146 | L28: -397430.2439
B29: 2017 | C29: -35000 | E29: 2017 | F29: -347366 | G29: -60000 | J29: -35000 | K29: -33313.50387 | L29: -387736.8233
B30: 2018 | C30: -35000 | E30: 2018 | F30: -347366 | G30: -60000 | J30: -35000 | K30: -32500.97938 | L30: -378279.8276
B31: 2019 | C31: -35000 | E31: 2019 | F31: -347366 | G31: -60000 | J31: -35000 | K31: -31708.27257 | L31: -369053.4904
B32: 2020 | C32: -35000 | E32: 2020 | F32: -347366 | G32: -60000 | J32: -35000 | K32: -30934.90007 | L32: -360052.1857
B33: 2021 | C33: -35000 | E33: 2021 | F33: -347366 | G33: -60000 | J33: -35000 | K33: -30180.39031 | L33: -351270.4251
B34: 2022 | C34: -35000 | E34: 2022 | F34: -347366 | G34: -60000 | J34: -35000 | K34: -29444.28323 | L34: -342702.8538
B35: 2023 | C35: -35000 | E35: 2023 | F35: -347366 | G35: -60000 | J35: -35000 | K35: -28726.12998 | L35: -334344.2476
B36: 2024 | C36: -35000 | E36: 2024 | F36: -347366 | G36: -60000 | J36: -35000 | K36: -28025.49266 | L36: -326189.5098
B37: 2025 | C37: -35000 | E37: 2025 | F37: -347366 | G37: -60000 | J37: -35000 | K37: -27341.94406 | L37: -318233.6681
B38: 2026 | C38: -35000 | E38: 2026 | F38: -347366 | G38: -60000 | J38: -35000 | K38: -26675.06738 | L38: -310471.8713
B39: 2027 | C39: -35000 | E39: 2027 | F39: -347366 | G39: -60000 | J39: -35000 | K39: -26024.45598 | L39: -302899.3867
B40: 2028 | C40: -35000 | E40: 2028 | F40: -347366 | G40: -60000 | J40: -35000 | K40: -25389.71315 | L40: -295511.5967
B41: 2029 | C41: -35000 | E41: 2029 | F41: -347366 | G41: -60000 | J41: -35000 | K41: -24770.45185 | L41: -288303.9968
B42: 2030 | C42: -35000 | E42: 2030 | F42: -347366 | G42: -60000 | J42: -35000 | K42: -24166.29449 | L42: -281272.192
B43: 2031 | C43: -35000 | E43: 2031 | F43: -347366 | G43: -60000 | J43: -35000 | K43: -23576.87267 | L43: -274411.8947
B44: 2032 | C44: -35000 | E44: 2032 | F44: -347366 | G44: -60000 | J44: -35000 | K44: -23001.827 | L44: -267718.9216
B45: 2033 | C45: -35000 | E45: 2033 | F45: -347366 | G45: -60000 | J45: -35000 | K45: -22440.80683 | L45: -261189.1918
B46: 2034 | C46: -35000 | E46: 2034 | F46: -347366 | G46: -60000 | J46: -35000 | K46: -21893.47008 | L46: -254818.7237
B47: 2035 | C47: -35000 | E47: 2035 | F47: -347366 | G47: -60000 | J47: -35000 | K47: -21359.483 | L47: -248603.6329
B48: 2036 | C48: -35000 | E48: 2036 | F48: -347366 | G48: -60000 | J48: -35000 | K48: -20838.52 | L48: -242540.1297
B49: 2037 | C49: -35000 | E49: 2037 | F49: -347366 | G49: -60000 | J49: -35000 | K49: -20330.26341 | L49: -236624.5167
B50: 2038 | C50: -35000 | E50: 2038 | F50: -347366 | G50: -60000 | J50: -35000 | K50: -19834.40333 | L50: -230853.1871
B51: 2039 | C51: -35000 | E51: 2039 | F51: -347366 | G51: -60000 | J51: -35000 | K51: -19350.6374 | L51: -225222.6215
B52: 2040 | C52: -35000 | E52: 2040 | J52: -35000 | K52: -18878.67063
B53: 2041 | C53: -35000 | E53: 2041 | J53: -35000 | K53: -18418.21525
B54: 2042 | C54: -35000 | E54: 2042 | J54: -35000 | K54: -17968.99049
B55: 2043 | C55: -35000 | E55: 2043 | J55: -35000 | K55: -17530.72243
B56: 2044 | C56: -35000 | E56: 2044 | J56: -35000 | K56: -17103.14383
B57: 2045 | C57: -35000 | E57: 2045 | J57: -35000 | K57: -16685.99398
B58: 2046 | C58: -35000 | E58: 2046 | J58: -35000 | K58: -16279.01852
B59: 2047 | C59: -35000 | E59: 2047 | J59: -35000 | K59: -15881.96929
B60: 2048 | C60: -35000 | E60: 2048 | J60: -35000 | K60: -15494.60418
B61: 2049 | C61: -35000 | E61: 2049 | J61: -35000 | K61: -15116.68701
B62: 2050 | C62: -35000 | E62: 2050 | J62: -35000 | K62: -14747.98732
B63: 2051 | C63: -35000 | E63: 2051 | J63: -35000 | K63: -14388.28032
B64: 2052 | C64: -35000 | E64: 2052 | J64: -35000 | K64: -14037.34665
B65: 2053 | C65: -35000 | E65: 2053 | J65: -35000 | K65: -13694.97234
B66: 2054 | C66: -35000 | E66: 2054 | J66: -35000 | K66: -13360.94863
B67: 2055 | C67: -35000 | E67: 2055 | J67: -35000 | K67: -13035.07183
B68: 2056 | C68: -35000 | E68: 2056 | J68: -35000 | K68: -12717.14325
B69: 2057 | C69: -35000 | E69: 2057 | J69: -35000 | K69: -12406.96902
B70: 2058 | C70: -35000 | E70: 2058 | J70: -35000 | K70: -12104.36002
B71: 2059 | C71: -35000 | E71: 2059 | J71: -35000 | K71: -11809.13173
B72: 2060 | C72: -35000 | E72: 2060 | J72: -35000 | K72: -11521.10413
B73: 2061 | C73: -35000 | E73: 2061 | J73: -35000 | K73: -11240.10159
B74: 2062 | C74: -35000 | E74: 2062 | J74: -35000 | K74: -10965.95277
B75: 2063 | C75: -35000 | E75: 2063 | J75: -35000 | K75: -10698.4905
B76: 2064 | C76: -35000 | E76: 2064 | J76: -35000 | K76: -10437.55171
B77: 2065 | C77: -35000 | E77: 2065 | J77: -35000 | K77: -10182.97728
B78: 2066 | C78: -35000 | E78: 2066 | J78: -35000 | K78: -9934.61198
B79: 2067 | C79: -35000 | E79: 2067 | J79: -35000 | K79: -9692.304371
B80: 2068 | C80: -35000 | E80: 2068 | J80: -35000 | K80: -9455.906703
B81: 2069 | C81: -35000 | E81: 2069 | J81: -35000 | K81: -9225.274832
B82: 2070 | C82: -35000 | E82: 2070 | J82: -35000 | K82: -9000.268129
B83: 2071 | C83: -35000 | E83: 2071 | J83: -35000 | K83: -8780.749394
B84: 2072 | C84: -35000 | E84: 2072 | J84: -35000 | K84: -8566.584775
B85: 2073 | C85: -35000 | E85: 2073 | J85: -35000 | K85: -8357.643683
B86: 2074 | C86: -35000 | E86: 2074 | J86: -35000 | K86: -8153.798715
B87: 2075 | C87: -35000 | E87: 2075 | J87: -35000 | K87: -7954.925576
B88: 2076 | C88: -35000 | E88: 2076 | J88: -35000 | K88: -7760.903001
B89: 2077 | C89: -35000 | E89: 2077 | J89: -35000 | K89: -7571.612683
B90: 2078 | C90: -35000 | E90: 2078 | I90: =IF($B90=$C$18,$C$21,"") ->  | J90: =IF($B90>=$C$18,IF($B90<=$C$19,$C90,""),"") -> -35000 | K90: =IF(SUM($I90:$J90)/((1+$C$10)^($B90-$C$18))<0,SUM($I90:$J90)/((1+$C$10)^($B90-$C$18)),"") -> -7386.939203 | L90: =IF($E90>=$F$18,IF($E90<=$F$19,IF(SUM($F90:$G90)/((1+$C$10)^($E90-$F$18))<0,SUM($F90:$G90)/((1+$C$10)^($E90-$F$18)),""),""),"") -> 
B91: 2079 | C91: -35000 | E91: 2079 | J91: -35000 | K91: -7206.769955
B92: =B91+1 -> 2080 | C92: -35000 | E92: =E91+1 -> 2080 | J92: -35000 | K92: -7030.995078
B93: =B92+1 -> 2081 | C93: -35000 | E93: =E92+1 -> 2081 | J93: -35000 | K93: -6859.507393
B94: =B93+1 -> 2082 | C94: -35000 | E94: =E93+1 -> 2082 | J94: -35000 | K94: -6692.202334
B95: =B94+1 -> 2083 | C95: -35000 | E95: =E94+1 -> 2083 | J95: -35000 | K95: -6528.977887
B96: 2084 | C96: -35000 | E96: 2084 | J96: -35000 | K96: -6369.734524
B97: 2085 | C97: -35000 | E97: 2085 | J97: -35000 | K97: -6214.375145
B98: 2086 | C98: -35000 | E98: 2086 | J98: -35000 | K98: -6062.80502
B99: 2087 | C99: -35000 | E99: 2087 | J99: -35000 | K99: -5914.931727
B100: 2088 | C100: -35000 | E100: 2088 | J100: -35000 | K100: -5770.665099
B101: 2089 | C101: -35000 | E101: 2089 | J101: -35000 | K101: -5629.91717
B102: 2090 | C102: -35000 | E102: 2090 | J102: -35000 | K102: -5492.602117
B103: 2091 | C103: -35000 | E103: 2091 | J103: -35000 | K103: -5358.636212
B104: 2092 | C104: -35000 | E104: 2092 | J104: -35000 | K104: -5227.937768
B105: =B104+1 -> 2093 | C105: -35000 | E105: =E104+1 -> 2093 | J105: -35000 | K105: -5100.42709
B106: =B105+1 -> 2094 | C106: -35000 | E106: =E105+1 -> 2094 | J106: -35000 | K106: -4976.02643
B107: 2095 | C107: -35000 | E107: 2095 | J107: -35000 | K107: -4854.659931
B108: 2096 | C108: -35000 | E108: 2096 | J108: -35000 | K108: -4736.253592
B109: 2097 | C109: -35000 | E109: 2097 | J109: -35000 | K109: -4620.735211
B110: 2098 | C110: -35000 | E110: 2098 | J110: -35000 | K110: -4508.034352
B111: 2099 | C111: -35000 | E111: 2099 | J111: -35000 | K111: -4398.082295
B112: 2100 | C112: -35000 | E112: 2100 | J112: -35000 | K112: -4290.811995
B113: 2101 | C113: -35000 | E113: 2101 | J113: -35000 | K113: -4186.158044
B114: 2102 | C114: -35000 | E114: 2102 | J114: -35000 | K114: -4084.056628
B115: 2103 | C115: -35000 | E115: 2103 | J115: -35000 | K115: -3984.445491
B116: 2104 | C116: -35000 | E116: 2104 | J116: -35000 | K116: -3887.263894
B117: 2105 | C117: -35000 | E117: 2105 | J117: -35000 | K117: -3792.452579
B118: 2106 | C118: -35000 | E118: 2106 | J118: -35000 | K118: -3699.953736
B119: 2107 | C119: -35000 | E119: 2107 | J119: -35000 | K119: -3609.710962
B120: 2108 | C120: -35000 | E120: 2108 | J120: -35000 | K120: -3521.669231
B121: 2109 | C121: -35000 | E121: 2109 | J121: -35000 | K121: -3435.77486
B122: 2110 | C122: -35000 | E122: 2110 | J122: -35000 | K122: -3351.975473
B123: 2111 | C123: -35000 | E123: 2111 | J123: -35000 | K123: -3270.219973
B124: 2112 | C124: -35000 | E124: 2112 | J124: -35000 | K124: -3190.458511
B125: 2113 | C125: -35000 | E125: 2113 | J125: -35000 | K125: -3112.642449
B126: 2114 | C126: -35000 | E126: 2114 | J126: -35000 | K126: -3036.724341
B127: 2115 | E127: 2115
B128: 2116 | E128: 2116
B129: 2117 | E129: 2117
B130: 2118 | E130: 2118
B131: 2119 | E131: 2119
B132: 2120 | E132: 2120
B133: 2121 | E133: 2121
B134: 2122 | E134: 2122
B135: 2123 | E135: 2123
B136: 2124 | E136: 2124
B137: 2125 | E137: 2125
B138: 2126 | E138: 2126
B139: 2127 | E139: 2127
B140: 2128 | E140: 2128
B141: 2129 | E141: 2129
B142: 2130 | E142: 2130
B143: 2131 | E143: 2131
B144: 2132 | E144: 2132
